bitfinex/quotes_ETHUSD_20241013
["timestamp","ask_amount","ask_price","bid_price","bid_amount"]
[1728783493571,6.18130701,2475.7,2475.2,0.7654]
[1728783493916,4.8616,2475.7,2475.2,0.7654]
[1728783494203,4.8616,2475.7,2475.2,6.12517701]
[1728783494401,4.03911,2475.8,2475.3,1.31970701]
[1728783494599,4.03911,2475.8,2475.3,1.43613282]
[1728783496170,5.35881701,2475.8,2475.3,0.11642581]
[1728783496372,9.39803701,2475.8,2475.3,0.11642581]
[1728783496579,4.03942,2475.6,2475.2,1.82276798]
[1728783496783,5.35881701,2475.8,2475.4,0.11632285]
[1728783497104,10.41324571,2475.8,2475.2,6.12515701]
[1728783497319,5.35881701,2475.8,2475.3,0.11642581]
[1728783497492,9.39800701,2475.8,2475.3,0.11642581]
[1728783497675,5.35881701,2475.8,2475.2,6.12515701]
[1728783497871,5.35881701,2475.8,2475.3,0.11642581]
[1728783498115,1.31970701,2475.7,2475.2,4.80545]
[1728783498293,4.03945,2475.6,2475.4,0.11632285]
[1728783498494,4.03945,2475.6,2475.2,0.7654]
[1728783498689,4.03945,2475.6,2475.3,0.11642581]
[1728783498918,4.03945,2475.6,2475.2,0.7654]
[1728783499231,4.03945,2475.6,2475.4,0.11632285]
[1728783499522,4.03945,2475.6,2475.5,0.1162199]
[1728783500018,4.03945,2475.6,2475.2,0.7654]
[1728783500481,4.03945,2475.6,2475.3,0.11642581]
[1728783500682,4.03945,2475.6,2475.2,0.7654]
[1728783500898,9.39799701,2475.8,2475.3,0.11642581]
[1728783501082,9.39799701,2475.8,2475.2,6.12515701]
[1728783501395,9.39799701,2475.8,2475.3,0.11642581]
[1728783501613,4.03935,2475.7,2475.3,0.11642581]
[1728783501914,4.03935,2475.7,2475.2,6.12515701]
[1728783501915,4.03935,2475.7,2475.4,0.11632285]
[1728783502102,5.35905701,2475.7,2475.2,4.80545]
[1728783502304,4.03942,2475.6,2475.3,0.11642581]
[1728783502618,4.03942,2475.6,2475.2,0.7654]
[1728783502779,4.03942,2475.6,2475.4,0.11632285]
[1728783502984,4.03942,2475.6,2475.3,0.11642581]
[1728783503197,4.03942,2475.6,2475.5,0.1162199]
[1728783503406,4.03942,2475.6,2475.4,0.11632285]
[1728783503585,4.03942,2475.6,2475.5,0.1162199]
[1728783504322,9.39800701,2475.8,2475.2,6.12515701]
[1728783504623,5.35881701,2475.8,2475.3,0.11642581]
[1728783504977,5.35881701,2475.8,2475.2,6.12515701]
[1728783505180,4.03911,2475.8,2475.4,0.11632285]
[1728783505382,4.03911,2475.8,2475.3,1.43613282]
[1728783505617,4.03911,2475.8,2475.5,0.1162199]
[1728783505932,4.03911,2475.8,2475.6,0.11612988]
[1728783506284,4.03911,2475.8,2475.3,1.31970701]
[1728783506484,4.03911,2475.8,2475.4,0.11633578]
[1728783506787,4.03884,2476.0,2475.5,6.13638701]
[1728783506788,4.03878,2476.0,2475.5,6.13638701]
[1728783507235,4.03878,2476.0,2475.6,0.11612988]
[1728783507595,8.35831701,2476.1,2475.6,0.11612988]
[1728783508097,5.35831701,2476.1,2475.6,0.11612988]
[1728783508299,5.35831701,2476.1,2475.6,1.14534157]
[1728783511638,5.35853701,2476.0,2475.6,1.14534157]
[1728783511792,1.31970701,2476.0,2475.6,0.02612988]
[1728783512140,1.31970701,2476.0,2475.6,0.11302695]
[1728783512343,5.35849701,2476.0,2475.6,0.11302695]
[1728783513948,6.11329701,2475.9,2475.6,0.11302695]
[1728783514154,8.83262,2475.9,2475.6,0.11302695]
[1728783514322,8.83263,2475.9,2475.6,0.11302695]
[1728783514525,4.79359,2475.9,2475.6,0.11302695]
[1728783515111,8.83264,2475.9,2475.6,0.11302695]
[1728783515750,4.79359,2475.9,2475.6,0.11302695]
[1728783516066,4.03912,2475.8,2475.6,0.11302695]
[1728783516355,5.35896701,2475.7,2475.6,0.11302695]
[1728783516712,5.35896701,2475.7,2475.4,0.84907493]
[1728783516713,4.03958,2475.5,2475.4,0.84907493]
[1728783517025,4.03958,2475.5,2475.4,0.96236547]
[1728783517610,5.35928701,2475.5,2475.4,0.96236547]
[1728783517813,9.37461771,2475.5,2475.4,0.96236547]
[1728783519355,3.0,2475.5,2475.4,0.96236547]
[1728783519514,4.31970701,2475.7,2475.4,0.96236547]
[1728783519745,3.0,2475.7,2475.4,0.11329054]
[1728783520091,5.35888701,2475.8,2475.2,2.09680701]
[1728783520261,1.31970701,2475.7,2475.2,0.7771]
[1728783520581,4.03918,2475.8,2475.5,0.11323765]
[1728783520771,5.35888701,2475.8,2475.2,4.81714]
[1728783520943,1.31970701,2475.7,2475.6,0.11313471]
[1728783521150,1.31970701,2475.7,2475.2,0.7771]
[1728783521151,4.03955,2475.6,2475.2,0.7771]
[1728783521672,1.31970701,2475.7,2475.2,0.7771]
[1728783521867,1.31970701,2475.7,2475.2,1.7948267]
[1728783522593,5.35898701,2475.7,2475.2,1.7948267]
[1728783522888,4.03944,2475.6,2475.2,1.7948267]
[1728783523051,5.35914701,2475.6,2475.2,0.7771]
[1728783524549,5.35914701,2475.6,2475.3,0.11342741]
[1728783524750,4.03944,2475.6,2475.2,0.7771]
[1728783524983,4.03944,2475.6,2475.3,0.11342741]
[1728783525380,4.03944,2475.6,2475.2,0.7771]
[1728783525559,4.03944,2475.6,2475.4,0.11332445]
[1728783525761,4.03944,2475.6,2475.2,0.7771]
[1728783526010,4.03944,2475.6,2475.3,0.11342741]
[1728783526493,4.03944,2475.6,2475.4,0.11332445]
[1728783526666,4.03944,2475.6,2475.2,0.7771]
[1728783526992,4.03944,2475.6,2475.3,0.11342741]
[1728783527368,4.03944,2475.6,2475.2,0.7771]
[1728783527601,4.03944,2475.6,2475.4,0.11332445]
[1728783527908,4.03944,2475.6,2475.5,0.1132215]
[1728783528214,4.03944,2475.6,2475.2,0.7771]
[1728783528370,4.03944,2475.6,2475.5,0.1132215]
[1728783528569,4.03944,2475.6,2475.2,0.7771]
[1728783528805,4.03944,2475.6,2475.5,0.11325867]
[1728783529032,4.03944,2475.6,2475.2,2.09680701]
[1728783529306,4.03944,2475.6,2475.2,0.7771]
[1728783529603,4.03944,2475.6,2475.3,0.11346458]
[1728783529968,4.03944,2475.6,2475.2,0.7771]
[1728783530169,4.03944,2475.6,2475.3,0.70208419]
[1728783530496,4.03944,2475.6,2475.3,0.11346458]
[1728783530703,4.03944,2475.6,2475.2,0.7771]
[1728783531046,4.03944,2475.6,2475.4,0.11336162]
[1728783531303,4.03944,2475.6,2475.5,0.11325867]
[1728783531511,4.03944,2475.6,2475.2,0.7771]
[1728783531698,4.03944,2475.6,2475.5,0.11325867]
[1728783531874,4.03944,2475.6,2475.2,0.7771]
[1728783532210,4.03944,2475.6,2475.5,0.11325867]
[1728783532413,4.03944,2475.6,2475.2,0.7771]
[1728783532587,4.03944,2475.6,2475.5,0.11325867]
[1728783533213,4.03944,2475.6,2475.2,0.7771]
[1728783533414,4.03944,2475.6,2475.5,0.11325867]
[1728783533899,4.03944,2475.6,2475.2,0.7771]
[1728783534077,4.03944,2475.6,2475.5,0.11325867]
[1728783534888,4.03944,2475.6,2475.2,0.7771]
[1728783535091,4.03944,2475.6,2475.5,0.11325867]
[1728783535275,4.03944,2475.6,2475.2,0.7771]
[1728783535478,4.03944,2475.6,2475.5,0.11325867]
[1728783535779,4.03944,2475.6,2475.2,0.7771]
[1728783535979,4.03944,2475.6,2475.5,0.11325867]
[1728783536231,4.03944,2475.6,2475.2,0.7771]
[1728783536377,4.0391,2475.8,2475.5,0.92215867]
[1728783536580,4.0391,2475.8,2475.5,0.8089]
[1728783536778,4.0391,2475.8,2475.6,0.11315572]
[1728783540580,4.03926,2475.7,2475.6,0.11315572]
[1728783541484,4.03926,2475.7,2475.3,0.8089]
[1728783542186,4.03913,2475.8,2475.4,0.70213072]
[1728783542394,4.03913,2475.8,2475.3,6.99757649]
[1728783542395,4.03913,2475.8,2475.3,3.80672759]
[1728783542594,4.03913,2475.8,2475.4,1.75521367]
[1728783542821,4.03913,2475.8,2475.3,3.80672759]
[1728783543125,4.03913,2475.8,2475.4,1.75521288]
[1728783543332,4.03913,2475.8,2475.4,1.08753971]
[1728783543491,4.03913,2475.8,2475.5,0.70205733]
[1728783543689,4.03913,2475.8,2475.4,1.08753971]
[1728783546434,2.07430701,2475.9,2475.3,0.8089]
[1728783546592,2.07430701,2475.9,2475.4,0.70207347]
[1728783546593,4.03938,2475.7,2475.4,0.70207347]
[1728783546791,4.03938,2475.7,2475.3,0.8089]
[1728783546997,4.03938,2475.7,2475.4,0.7020662]
[1728783547192,4.03938,2475.7,2475.3,0.8089]
[1728783547492,4.03942,2475.6,2475.3,1.63802048]
[1728783551636,4.03971,2475.5,2475.1,1.6638911]
[1728783551792,4.03985,2475.4,2475.2,0.70216486]
[1728783551990,4.03985,2475.4,2475.1,0.8149]
[1728783552428,4.03985,2475.4,2474.9,10.24617945]
[1728783552627,1.31970701,2475.5,2475.0,1.75535326]
[1728783552932,4.04009,2475.2,2474.8,0.8489911]
[1728783553128,4.04009,2475.2,2474.9,0.7021975]
[1728783553314,4.04009,2475.2,2474.7,2.98359811]
[1728783553543,4.04009,2475.2,2474.8,1.75520197]
[1728783553719,4.04009,2475.2,2474.9,0.70208079]
[1728783553921,4.04009,2475.2,2474.7,5.11355194]
[1728783554226,4.04009,2475.2,2474.8,1.75522788]
[1728783554432,4.04009,2475.2,2474.9,0.70196485]
[1728783554627,4.04009,2475.2,2474.9,0.11390232]
[1728783554845,0.7514,2475.1,2474.9,0.11390232]
[1728783554998,0.7514,2475.1,2474.7,0.8489911]
[1728783555332,0.7514,2475.1,2474.8,1.75498113]
[1728783555631,0.7514,2475.1,2474.8,0.11404893]
[1728783555841,6.11143701,2475.1,2474.8,0.11404893]
[1728783555991,4.04049,2475.0,2474.6,0.8489911]
[1728783556191,4.04049,2475.0,2474.5,12.07756638]
[1728783556192,4.04049,2475.0,2474.9,0.11395239]
[1728783556394,4.04049,2475.0,2474.5,10.24917945]
[1728783556616,4.04049,2475.0,2474.9,0.11395239]
[1728783556827,4.04049,2475.0,2474.5,10.24917945]
[1728783556995,6.11143701,2475.1,2474.9,0.11395239]
[1728783556996,10.15181701,2475.1,2474.9,0.11395239]
[1728783557198,4.0404,2475.0,2474.5,10.24917945]
[1728783557411,4.0404,2475.0,2474.6,1.75416726]
[1728783557629,4.0404,2475.0,2474.5,10.24917945]
[1728783557945,6.11143701,2475.1,2474.5,15.00115275]
[1728783557946,10.15178701,2475.1,2474.5,15.00115275]
[1728783558754,10.15178701,2475.1,2474.6,0.70170798]
[1728783558925,0.7514,2474.9,2474.4,4.88989643]
[1728783559237,4.79207,2474.9,2474.5,0.70170794]
[1728783559444,4.79207,2474.9,2474.3,2.66306288]
[1728783559652,4.79207,2474.9,2474.4,3.07367642]
[1728783559815,4.79207,2474.9,2474.5,0.70158776]
[1728783560022,4.79207,2474.9,2474.4,1.31970701]
[1728783560329,4.79207,2474.9,2474.3,1.15159364]
[1728783560330,4.04083,2474.8,2474.3,1.31970701]
[1728783560534,4.04083,2474.8,2474.4,0.70142331]
[1728783560844,4.79207,2474.9,2474.3,3.05724236]
[1728783560845,4.79207,2474.9,2474.5,1.31970701]
[1728783561146,0.7514,2474.9,2474.6,1.31970701]
[1728783561813,0.7514,2474.9,2474.5,2.13760701]
[1728783562234,4.79197,2474.9,2474.5,2.13760701]
[1728783565821,4.0403,2475.1,2474.5,2.13760701]
[1728783565822,4.04042,2475.0,2474.6,1.31970701]
[1728783566033,4.8002,2475.1,2474.6,1.31970701]
[1728783566343,8.84056,2475.1,2474.6,1.31970701]
[1728783566725,8.84056,2475.1,2474.5,6.97044825]
[1728783567615,4.8002,2475.1,2474.7,1.31970701]
[1728783567843,4.8002,2475.1,2474.8,0.5360657]
[1728783568048,4.8002,2475.1,2474.7,1.31970701]
[1728783569550,4.8002,2475.1,2474.8,0.11419436]
[1728783569759,4.8002,2475.1,2474.6,5.36065701]
[1728783569977,4.8002,2475.1,2474.9,0.11409136]
[1728783570118,4.8002,2475.1,2474.6,5.36065701]
[1728783570317,4.8002,2475.1,2475.0,0.11398837]
[1728783570617,4.8002,2475.1,2474.6,5.36065701]
[1728783570817,4.8002,2475.1,2475.0,0.11398837]
[1728783571017,4.8002,2475.1,2474.6,5.36065701]
[1728783571217,4.8002,2475.1,2475.0,0.11398837]
[1728783571715,4.8002,2475.1,2474.6,5.36065701]
[1728783572053,4.8002,2475.1,2475.0,0.11398837]
[1728783572237,4.8002,2475.1,2474.6,5.36065701]
[1728783572445,4.8002,2475.1,2475.0,0.11398837]
[1728783572651,4.8002,2475.1,2474.6,5.36065701]
[1728783573157,4.8002,2475.1,2474.7,0.11429737]
[1728783576468,8.84053,2475.1,2474.7,0.82274693]
[1728783577254,4.8002,2475.1,2474.7,0.82274693]
[1728783577456,8.84054,2475.1,2474.7,0.82274693]
[1728783580280,8.84054,2475.1,2474.7,0.11429737]
[1728783580584,4.8002,2475.1,2474.7,0.11429737]
[1728783581286,8.84052,2475.1,2474.7,0.11429737]
[1728783581452,4.8002,2475.1,2474.7,0.11429737]
[1728783584166,8.84053,2475.1,2474.7,0.11429737]
[1728783585193,8.84053,2475.1,2474.5,6.97044825]
[1728783585391,8.84053,2475.1,2474.8,0.11036005]
[1728783585696,8.84053,2475.1,2474.6,1.31970701]
[1728783585891,8.84053,2475.1,2474.9,0.11025705]
[1728783586103,8.84053,2475.1,2474.6,1.31970701]
[1728783586259,4.8002,2475.1,2475.0,0.11015406]
[1728783586458,8.84055,2475.1,2474.6,1.31970701]
[1728783586682,8.84055,2475.1,2475.0,0.11015406]
[1728783586888,8.84055,2475.1,2474.6,1.31970701]
[1728783587070,4.8002,2475.1,2475.0,0.11015406]
[1728783587708,4.8002,2475.1,2474.6,1.31970701]
[1728783588216,4.8002,2475.1,2474.7,0.11046306]
[1728783588372,4.04043,2475.0,2474.7,0.11046306]
[1728783588572,4.04043,2475.0,2474.5,2.92924825]
[1728783588815,4.04043,2475.0,2474.8,0.11036005]
[1728783589117,4.04043,2475.0,2474.6,0.69705283]
[1728783589270,4.04043,2475.0,2474.9,0.11025705]
[1728783589623,4.04043,2475.0,2474.5,2.92924825]
[1728783589903,4.04043,2475.0,2474.9,0.11025705]
[1728783590106,4.04043,2475.0,2474.5,2.92924825]
[1728783590317,4.04043,2475.0,2474.6,1.18604347]
[1728783590484,4.04043,2475.0,2474.6,1.29660955]
[1728783590867,4.04043,2475.0,2474.6,2.61631656]
[1728783593316,0.7599,2475.1,2474.6,6.65735656]
[1728783593476,0.7599,2475.1,2474.6,6.65725656]
[1728783593682,4.04007,2475.2,2474.7,3.53421664]
[1728783594004,4.04007,2475.2,2474.8,0.81195365]
[1728783594206,4.04007,2475.2,2474.8,0.11036005]
[1728783594503,4.04007,2475.2,2474.8,1.31970701]
[1728783594710,4.03979,2475.4,2475.1,1.31970701]
[1728783594948,4.03979,2475.4,2475.1,1.93692501]
[1728783595247,4.03927,2475.7,2475.3,2.14550701]
[1728783595414,0.814,2475.8,2475.3,2.14550701]
[1728783595619,0.814,2475.8,2475.4,0.10972599]
[1728783595822,4.85314,2475.8,2475.4,0.10972599]
[1728783596028,0.814,2475.8,2475.6,1.31970701]
[1728783596226,4.03885,2476.0,2475.6,1.31970701]
[1728783596415,4.03885,2476.0,2475.7,0.10939778]
[1728783596829,8.07773,2476.0,2475.7,0.10939778]
[1728783597145,5.27547908,2476.1,2475.8,0.10929485]
[1728783597303,4.85263,2476.1,2475.6,1.31970701]
[1728783597642,4.85263,2476.1,2475.7,0.1093687]
[1728783598350,4.03881,2476.0,2475.7,0.1093687]
[1728783600504,4.58472352,2476.3,2475.9,1.31970701]
[1728783600719,0.9376171,2476.3,2476.0,1.42876695]
[1728783600922,4.03844,2476.2,2476.0,0.10905994]
[1728783601442,0.9376171,2476.3,2476.0,1.42876695]
[1728783601742,0.9376171,2476.3,2476.2,1.31970701]
[1728783601743,0.1236171,2476.3,2476.2,1.31970701]
[1728783602111,0.1236171,2476.3,2476.2,1.42856116]
[1728783602658,0.1236171,2476.3,2476.2,0.10885415]
[1728783603546,0.1236171,2476.3,2476.2,1.42856116]
[1728783604063,0.1236171,2476.3,2476.2,2.21586116]
[1728783604272,0.1236171,2476.3,2476.2,2.90424875]
[1728783604623,0.1236171,2476.3,2476.2,1.58454174]
[1728783604824,0.1236171,2476.3,2476.2,2.90424875]
[1728783606184,0.1236171,2476.3,2476.2,7.49268875]
[1728783606348,0.1236171,2476.3,2476.2,7.55547568]
[1728783607172,0.1236171,2476.3,2476.2,2.13454174]
[1728783607462,4.7147171,2476.6,2476.2,2.90424875]
[1728783607667,4.7147171,2476.6,2476.3,2.01399089]
[1728783608159,0.6769171,2476.6,2476.4,0.10829634]
[1728783610483,4.03774,2476.7,2476.4,1.42800335]
[1728783611867,4.03774,2476.7,2476.4,0.10829634]
[1728783614773,0.7533,2476.5,2476.1,1.31970701]
[1728783615071,7.45931904,2477.4,2476.5,0.7873]
[1728783615072,0.7533,2476.8,2476.5,0.7873]
[1728783616272,0.7533,2476.8,2476.6,1.31970701]
[1728783616440,0.7533,2477.0,2476.6,1.31970701]
[1728783616770,0.7533,2477.0,2476.5,2.10700701]
[1728783616771,4.79047,2477.0,2476.5,2.10700701]
[1728783616973,0.7533,2477.0,2476.6,1.0183047]
[1728783617352,4.79045,2477.0,2476.6,1.0183047]
[1728783617681,4.03733,2476.9,2476.6,1.0183047]
[1728783617835,4.03733,2476.9,2476.5,0.7873]
[1728783618176,4.03764,2476.7,2476.3,2.10700701]
[1728783618532,8.07474,2476.9,2476.3,4.82542]
[1728783618752,4.03758,2476.8,2476.4,1.31970701]
[1728783618962,4.03733,2476.9,2476.4,1.31970701]
[1728783619642,4.03733,2476.9,2476.4,1.93423771]
[1728783619991,4.03733,2476.9,2476.4,0.6145307]
[1728783620640,4.03733,2476.9,2476.3,6.14524701]
[1728783620641,0.7533,2476.8,2476.3,0.7873]
[1728783621328,4.03765,2476.7,2476.3,0.7873]
[1728783621820,4.03765,2476.7,2476.3,2.10700701]
[1728783621998,4.03765,2476.7,2476.3,0.7873]
[1728783624179,0.7533,2476.8,2476.3,2.10700701]
[1728783624418,4.79078,2476.8,2476.3,3.12537971]
[1728783625032,4.79078,2476.8,2476.3,1.8056727]
[1728783625228,4.79078,2476.8,2476.3,2.10700701]
[1728783625435,0.7533,2476.8,2476.3,2.10700701]
[1728783625593,0.7533,2476.8,2476.3,6.14512701]
[1728783625936,4.79078,2476.8,2476.3,2.10700701]
[1728783626224,0.7533,2476.8,2476.3,0.7873]
[1728783626531,4.0378,2476.6,2476.3,0.7873]
[1728783626757,0.7589,2476.5,2476.1,0.8106]
[1728783627041,0.7589,2476.5,2476.1,3.40442761]
[1728783627833,0.7589,2476.5,2476.1,7.44299761]
[1728783628637,0.7589,2476.5,2476.1,6.1232906]
[1728783629221,0.7589,2476.5,2476.1,7.44299761]
[1728783629698,0.7589,2476.5,2476.2,0.10835363]
[1728783632298,0.7589,2476.5,2476.2,0.14981037]
[1728783633250,0.7589,2476.5,2476.2,4.18822037]
[1728783633547,0.8258,2476.8,2476.2,10.07604103]
[1728783633756,4.86328,2476.8,2476.2,10.07597103]
[1728783634052,4.86328,2476.8,2476.2,10.07598103]
[1728783634347,4.86328,2476.8,2476.2,6.03763103]
[1728783634547,0.8258,2476.8,2476.3,4.85042516]
[1728783634919,4.86337,2476.8,2476.4,0.14970582]
[1728783635118,6.18345701,2476.5,2475.9,7.26258134]
[1728783635328,5.35787701,2476.4,2475.9,7.26258134]
[1728783635534,5.35787701,2476.4,2476.0,0.1501241]
[1728783635721,5.35800701,2476.3,2476.0,0.1501241]
[1728783635925,2.14550701,2476.2,2476.0,0.1501241]
[1728783636122,1.31970701,2476.1,2475.6,0.7627]
[1728783636390,4.86425,2476.2,2475.4,4.80235]
[1728783636391,1.31970701,2475.9,2475.4,4.80235]
[1728783636554,6.18430701,2476.0,2475.7,0.15043789]
[1728783636910,6.18430701,2476.0,2475.4,4.80235]
[1728783637107,2.14550701,2476.0,2475.5,4.03952]
[1728783637311,0.8258,2476.0,2475.6,4.1899425]
[1728783639330,0.5358007,2476.3,2475.6,4.1899425]
[1728783639331,0.8258,2476.3,2475.9,1.31970701]
[1728783639663,4.86375,2476.6,2476.1,4.03859]
[1728783640194,4.86375,2476.6,2476.2,0.14991494]
[1728783640530,6.18345701,2476.6,2476.2,0.14991494]
[1728783641275,6.18345701,2476.6,2476.0,4.80145]
[1728783641276,1.31970701,2476.5,2476.0,4.80145]
[1728783641454,1.31970701,2476.5,2476.3,0.14981038]
[1728783641658,6.18345701,2476.6,2476.0,5.8174447]
[1728783641859,10.22134701,2476.6,2476.4,0.14970582]
[1728783642040,6.18339701,2476.6,2476.0,4.80145]
[1728783642241,13.22131701,2476.6,2476.5,0.14964808]
[1728783642570,6.18339701,2476.6,2476.0,4.80145]
[1728783642872,9.18339701,2476.6,2476.5,0.14964808]
[1728783643167,13.22129701,2476.6,2476.5,0.14964808]
[1728783643487,13.22129701,2476.6,2476.0,5.8174447]
[1728783643631,9.18339701,2476.6,2476.5,0.14964808]
[1728783643970,9.18339701,2476.6,2476.0,5.8174447]
[1728783644160,9.18339701,2476.6,2476.5,0.14971263]
[1728783644671,9.18339701,2476.6,2476.1,1.11759417]
[1728783644834,9.18339701,2476.6,2476.5,0.14971263]
[1728783645031,9.18339701,2476.6,2476.0,4.80145]
[1728783645235,9.18339701,2476.6,2476.5,0.14971263]
[1728783645455,9.18339701,2476.6,2476.0,4.80145]
[1728783645670,9.18339701,2476.6,2476.5,0.14971263]
[1728783645841,0.8258,2476.6,2476.2,4.03844]
[1728783646173,0.8258,2476.6,2476.5,0.14971263]
[1728783646346,0.8258,2476.6,2476.3,0.14992173]
[1728783646547,4.31970701,2476.7,2476.3,4.18815173]
[1728783646548,3.0,2476.7,2476.3,4.18815173]
[1728783646773,0.7592,2476.8,2476.4,4.03811]
[1728783646983,0.7592,2476.8,2476.4,1.03142287]
[1728783647136,0.7592,2476.8,2476.4,1.18123359]
[1728783647551,4.79669,2476.8,2476.4,1.18123359]
[1728783648645,6.11611701,2477.0,2476.4,1.18123359]
[1728783648847,6.11611701,2477.0,2476.5,0.73074106]
[1728783649181,10.15336701,2477.0,2476.5,0.88044723]
[1728783649476,6.11611701,2477.0,2476.5,0.88044723]
[1728783649980,10.15335701,2477.0,2476.5,0.88044723]
[1728783650334,6.11611701,2477.0,2476.5,0.88044723]
[1728783650546,10.15334701,2477.0,2476.6,0.49184372]
[1728783650932,10.15334701,2477.0,2476.7,0.1494971]
[1728783651137,5.35716701,2476.8,2476.7,0.1494971]
[1728783651442,4.79666,2476.8,2476.3,0.7683]
[1728783651653,4.79666,2476.8,2476.7,0.14944546]
[1728783651945,4.79666,2476.8,2476.3,0.7683]
[1728783652134,4.79666,2476.8,2476.7,0.14944546]
[1728783652330,4.79666,2476.8,2476.4,0.6126447]
[1728783652531,4.79666,2476.8,2476.7,0.14944546]
[1728783653046,4.79666,2476.8,2476.4,0.6126447]
[1728783653378,4.79666,2476.8,2476.7,0.14944546]
[1728783653539,8.07541,2476.7,2476.3,0.7683]
[1728783653739,4.03764,2476.7,2476.1,6.12653701]
[1728783653948,4.03764,2476.7,2476.2,0.69751634]
[1728783654635,5.35749701,2476.6,2476.2,0.69751634]
[1728783654875,4.03797,2476.5,2476.2,0.69751634]
[1728783655061,4.79717,2476.5,2476.1,0.7683]
[1728783655857,4.03813,2476.4,2475.9,5.65575643]
[1728783656074,6.11687701,2476.5,2475.9,4.80713]
[1728783656393,6.11687701,2476.5,2476.0,0.70103809]
[1728783656553,6.11687701,2476.5,2476.0,0.81057656]
[1728783656755,10.15493701,2476.5,2476.0,0.81057656]
[1728783656948,6.11687701,2476.5,2476.0,0.81057656]
[1728783659497,6.11687701,2476.5,2476.1,0.15003241]
[1728783659689,10.15495701,2476.5,2476.1,0.15003241]
[1728783659891,6.11687701,2476.5,2476.1,0.15003241]
[1728783660215,4.79717,2476.5,2476.1,0.15003241]
[1728783660354,6.11687701,2476.5,2476.1,0.15003241]
[1728783660688,4.79717,2476.5,2476.1,0.15003241]
[1728783661259,4.79717,2476.5,2476.1,1.26265101]
[1728783662295,10.15436701,2476.7,2476.2,0.7683]
[1728783662593,10.15436701,2476.7,2476.2,0.91822784]
[1728783662798,4.7969,2476.7,2476.2,6.27627485]
[1728783662998,3.0,2476.8,2476.2,6.27627485]
[1728783663163,5.35727701,2476.8,2476.3,0.73888935]
[1728783663496,5.35727701,2476.8,2476.4,0.14976229]
[1728783663967,1.31970701,2476.7,2476.4,0.14976229]
[1728783664172,5.35727701,2476.8,2476.4,0.14976229]
[1728783666295,6.13975701,2476.5,2476.0,0.8075]
[1728783666673,8.85816,2476.5,2476.0,0.8075]
[1728783666903,4.82005,2476.5,2476.0,0.8075]
[1728783667099,4.03813,2476.4,2476.0,0.8075]
[1728783667311,4.03839,2476.3,2476.0,0.8075]
[1728783667607,4.03839,2476.3,2475.8,0.8075]
[1728783667806,8.85823,2476.5,2475.9,6.38246849]
[1728783667980,4.03814,2476.4,2475.9,2.34354849]
[1728783668802,4.03814,2476.4,2475.9,1.02384148]
[1728783670492,4.03832,2476.3,2475.9,1.02384148]
[1728783671190,4.03832,2476.3,2475.8,0.8075]
[1728783671191,8.07674,2476.3,2475.8,0.8075]
[1728783671398,4.03844,2476.2,2475.8,0.8075]
[1728783671574,4.03832,2476.3,2475.8,0.8075]
[1728783671779,4.03832,2476.3,2475.8,4.84657]
[1728783672809,4.03832,2476.3,2475.8,0.8075]
[1728783673391,1.31970701,2476.2,2475.8,1.9255892]
[1728783673715,4.03863,2476.1,2475.8,0.8075]
[1728783674721,5.35802701,2476.3,2475.8,0.8075]
[1728783674722,4.03832,2476.3,2475.9,0.15032874]
[1728783675221,8.07671,2476.3,2475.9,0.15032874]
[1728783675520,4.03844,2476.2,2475.9,0.15032874]
[1728783679324,5.35802701,2476.3,2475.9,0.15032874]
[1728783679693,8.0767,2476.3,2475.9,0.15032874]
[1728783680339,4.03832,2476.3,2475.9,0.15032874]
[1728783680736,10.17790701,2476.5,2475.9,0.78200732]
[1728783681108,6.13982701,2476.5,2475.9,0.78200732]
[1728783681342,4.03814,2476.4,2475.9,0.78200732]
[1728783681689,4.82012,2476.5,2475.9,2.10171433]
[1728783681895,4.03771,2476.7,2475.9,2.10171433]
[1728783681896,4.03771,2476.7,2476.3,0.8075]
[1728783682140,4.03771,2476.7,2476.3,1.4240637]
[1728783682302,4.03771,2476.7,2476.4,0.14986882]
[1728783682510,5.77988945,2476.9,2476.4,0.14986882]
[1728783682929,4.03763,2476.7,2476.4,0.14986882]
[1728783683226,4.31970701,2476.8,2476.4,0.14986882]
[1728783683429,4.31970701,2476.8,2476.4,1.11493907]
[1728783684713,8.35718701,2476.8,2476.4,1.11493907]
[1728783686559,4.03769,2476.7,2476.4,1.11493907]
[1728783688474,8.35718701,2476.8,2476.4,1.11493907]
[1728783688775,4.03763,2476.7,2476.4,1.11493907]
[1728783689270,8.35718701,2476.8,2476.4,1.11493907]
[1728783690566,12.39474701,2476.8,2476.4,1.11493907]
[1728783691869,12.39479701,2476.8,2476.4,1.11493907]
[1728783692022,8.35718701,2476.8,2476.4,1.11493907]
[1728783692229,7.03748,2476.8,2476.5,0.8079]
[1728783692675,7.03748,2476.8,2476.6,0.14960003]
[1728783694837,11.07505,2476.8,2476.6,0.14960003]
[1728783695354,7.03748,2476.8,2476.6,0.14960003]
[1728783695663,11.07504,2476.8,2476.6,0.14960003]
[1728783696576,4.03715,2477.0,2476.6,0.14960003]
[1728783696725,5.35685701,2477.0,2476.6,0.87763076]
[1728783697662,4.03739,2476.9,2476.6,0.87763076]
[1728783698927,5.35685701,2477.0,2476.6,0.87763076]
[1728783699627,4.03715,2477.0,2476.6,0.87763076]
[1728783707374,8.07439,2477.0,2476.6,0.87763076]
[1728783707572,4.037,2477.1,2476.6,0.87763076]
[1728783707815,4.03716,2477.0,2476.7,0.8076]
[1728783708180,4.03716,2477.0,2476.8,0.14936675]
[1728783708509,6.15902701,2477.2,2476.9,0.8076]
[1728783708510,4.03692,2477.2,2476.9,0.8076]
[1728783708718,4.03692,2477.2,2476.9,0.95678477]
[1728783710512,5.35662701,2477.2,2476.9,0.95678477]
[1728783711481,4.03692,2477.2,2476.9,0.95678477]
[1728783713381,4.03692,2477.2,2476.9,1.52665342]
[1728783715886,4.03697,2477.1,2476.9,1.52665342]
[1728783716086,4.03692,2477.2,2476.9,1.52665342]
[1728783716087,4.03692,2477.2,2476.9,0.95678477]
[1728783720326,1.31970701,2477.1,2476.9,0.14918477]
[1728783720482,1.31970701,2477.1,2476.7,0.7691]
[1728783720678,4.03697,2477.1,2477.0,0.14903186]
[1728783720885,4.03697,2477.1,2476.7,0.7691]
[1728783721130,4.03697,2477.1,2477.0,0.14903186]
[1728783721318,4.03697,2477.1,2476.7,0.7691]